Workbook

Sheet МЕНЮ-РАСК 1-3
A1: Утверждаю | F1: Согласовано
A2: Директор _________________________ | H2: Руководитель дошкольной образовательной
A3: __________________________________ | F3: организации _________________________
E6: Примерное 10-дневное меню
E7: для организации питания детей в дошкольных учреждениях
E8: с 8-10,5 - часовым пребыванием от 1 года до 3 лет
A10: День 1 - ый
A11: Наименование блюд и | C11: Масса | D11: Кол - во | E11: Кол - во | F11: Пищевые вещества | I11: Энергетическая | J11: С,мг | K11: Сборник
A12: продуктов | C12: порции | D12: (в гр ) | E12: (в гр ) | I12: ценность | K12: рецептур
D13: брутто | E13: нетто | F13: белки | G13: жиры | H13: угл-ды | I13: Ккал
A15: Каша "Дружба" молочная с маслом сливочным | C15: 140/3 | F15: 4.22 | G15: 4.92 | H15: 23.38 | I15: 155.56 | J15: 0.67 | K15: ТТК №7Д
B16: Крупа рисовая | D16: 10 | E16: 10
B17: Крупа пшенная | D17: 7.5 | E17: 7.5
B18: Молоко | D18: 75 | E18: 75
B19: Вода | D19: 48 | E19: 48
B20: Сахар | D20: 2 | E20: 2
B21: соль иодированная | D21: 0.4 | E21: 0.4
B22: Масло сливочное | D22: 3 | E22: 3
A23: Кофейный напиток с молоком | C23: 180 | F23: 2.85 | G23: 2.41 | H23: 14.35 | I23: 90.54 | J23: 1.17 | K23: №395 Дели2010
B24: Кофейный напиток | D24: 2.50 | E24: 2.50
B25: Сахар | D25: 6.00 | E25: 6.00
B26: Молоко | D26: 90.00 | E26: 90.00
B27: Вода | D27: 108.00 | E27: 108.00
A28: Бутерброд с маслом сливочным | C28: 25/5 | F28: 1.92 | G28: 4.36 | H28: 12.92 | I28: 98.50 | J28: 0.00 | K28: №1 Дели2010
B29: Батон нарезной | D29: 25 | E29: 25
B30: Масло сливочное | D30: 5 | E30: 5
A31: Итого: | C31: 353 | F31: 8.80 | G31: =G15+G28 -> 9.28 | H31: 38.59 | I31: 293.60 | J31: =J15+J23+J28 -> 1.84
B32: 2 - ой ЗАВТРАК
A33: Сок | C33: 200 | D33: 200 | E33: 200 | F33: 1.00 | G33: 0.00 | H33: 20.20 | I33: 84.80 | J33: 4.00 | K33: №418 сб дошк 2016
A34: в ассортименте в инд.упаковке
A35: Итого: | C35: 200 | F35: =F33 -> 1.00 | G35: =G33 -> 0.00 | H35: 20.20 | I35: 84.80 | J35: 4.00
B36: ОБЕД
A37: Салат из моркови с яблоками | C37: 40 | F37: 0.42 | G37: 0.07 | H37: 3.41 | I37: 15.96 | J37: 1.75 | K37: №39,сб дошк2016
B38: морковь | D38: 37.50 | E38: 30.00
B39: яблоки | D39: 11.40 | E39: 10.00
B40: сахар | D40: 0.40 | E40: 0.40
A41: Суп вермишелевый с картофелем с мясными фрикадельками | C41: 150/10 | F41: 3.49 | G41: 2.86 | H41: 10.47 | I41: 88.11 | J41: 5.05 | K41: №88 СБ дошк 2016
B42: говядина б/к (котлетное мясо) | D42: 11.97 | E42: 11.4
B43: или фарш говяжий | D43: 11.97 | E43: 11.4
B44: Лук репчатый | D44: 1.19 | E44: 1
B45: Яйцо | D45: 0.96 | E45: 0.8
B46: Вода для фарша | D46: 1 | E46: 1
B47: соль иодированная | D47: 0.1 | E47: 0.1
B48: масса полуфабриката фрикаделек | E48: 14.3
B49: масса готовых фрикаделек | E49: 10
B50: Картофель | D50: 59.90 | E50: 45.00
B51: Морковь | D51: 7.50 | E51: 6.00
B52: Лук репчатый | D52: 7.14 | E52: 6.00
B53: вермишель | D53: 6.00 | E53: 6.00
B54: Масло растительное | D54: 3.00 | E54: 3.00
B55: соль иодированная | D55: 0.50 | E55: 0.50
B56: вода | D56: 114.00 | E56: 114.00
A57: Котлеты рубленные из говядины | C57: 50 | F57: 8.42 | G57: 9.35 | H57: 8.22 | I57: 150.76 | J57: 0.60 | K57: СБ дошкольн. №299, 2016
B58: говядина (котлетное мясо б/к) | D58: 36.57 | E58: 35
B59: или фарш говяжий | D59: 36.57 | E59: 35
B60: лук репчатый | D60: 10.4 | E60: 8.75
B61: Хлеб пшеничный | D61: 8.13 | E61: 8.13
B62: Вода | D62: 5.2 | E62: 5.2
B63: сухари панировочные | D63: 5 | E63: 5
B64: соль иодированная | D64: 0.4 | E64: 0.4
B65: масса полуфабриката | E65: 60
B66: Масло растительное | D66: 0.60 | E66: 0.60
A67: Пюре Картофельное | C67: 120 | F67: 2.45 | G67: 3.84 | H67: 16.35 | I67: 109.80 | J67: 14.53 | K67: № 339 СБ дошк 2016
B68: Картофель | D68: 136.8 | E68: 102.6
B69: Молоко | D69: 18.96 | E69: 18
B70: Масло сливочное | D70: 4.2 | E70: 4.2
B71: соль иодированная | D71: 0.45 | E71: 0.45
A72: Напиток из сухофруктов | C72: 150 | F72: 0.50 | G72: 0.07 | H72: 24.01 | I72: 100 | J72: 1 | K72: №394 Сб дошк 2016
B73: сухофрукты | D73: 12.75 | E73: 12.50
B74: Сахар | D74: 5.00 | E74: 5.00
B75: вода | D75: 152.00 | E75: 152.00
A76: Хлеб пшеничный | C76: 20 | D76: 20.0 | E76: 20.0 | F76: 1.52 | G76: 0.16 | H76: 9.84 | I76: 47.00 | K76: табл 6 стр 134,Дели + 2012
A77: Хлеб ржаной | C77: 30 | D77: 30 | E77: 30 | F77: 1.98 | G77: 0.36 | H77: 11.88 | I77: 59.40 | K77: табл 6 стр 144,Дели + 2012
A78: Итого: | C78: 570.00 | F78: =F37+F41+F57+F67+F72+F76+F77 -> 18.79 | G78: =G37+G41+G57+G67+G72+G76+G77 -> 16.70 | H78: 84.18 | I78: 570.63 | J78: 22.47
B79: ПОЛДНИК
A80: Кисломолочный напиток | C80: 150 | F80: 4.35 | G80: 3.75 | H80: 6.00 | I80: 75.00 | J80: 1.05 | K80: №420 Сб дошк 2016
A81: (Кефир,ряженка,катык, йогурт/напиток ацидофильный) | B81: кисломолочный напиток | D81: 155 | E81: 150
A82: Запеканка творожная с повидлом | C82: 110/20 | F82: 19.33 | G82: 16.98 | H82: 21.93 | I82: 317.80 | J82: 0.61 | K82: № 251 сб дошк 2016
B83: Творог | D83: 103.20 | E83: 101.20
B84: крупа манная | D84: 6.60 | E84: 6.60
B85: Яйцо | D85: 5.28 | E85: 4.40
B86: Сахар | D86: 8.80 | E86: 8.80
B87: Сметана | D87: 4.40 | E87: 4.40
B88: Масло сливочное | D88: 4.40 | E88: 4.40
B89: Сухари панировочные | D89: 4.40 | E89: 4.40
B90: соль иодированная | D90: 0.55 | E90: 0.55
B91: повидло | D91: 20.00 | E91: 20.00
A92: Итого: | C92: 280.00 | F92: =F80+F82 -> 23.68 | G92: =G80+G82 -> 20.73 | H92: 27.93 | I92: 392.80 | J92: 1.66
A93: ВСЕГО: | C93: =C31+C35+C78+C92 -> 1403.00 | F93: =F31+F35+F78+F92 -> 52.26 | G93: =G31+G35+G78+G92 -> 46.71 | H93: 170.90 | I93: 1341.83 | J93: 29.97
A95: День 2- ой
A96: Наименование блюд и | C96: Масса | D96: Кол - во | E96: Кол - во | F96: Пищевые вещества | I96: Энергетическая | J96: С,мг | K96: Сборник
A97: продуктов | C97: порции | D97: (в гр ) | E97: (в гр ) | I97: ценность | K97: рецептур
D98: брутто | E98: нетто | F98: белки | G98: жиры | H98: угл-ды | I98: Ккал
B99: ЗАВТРАК
A100: Каша полбяная молочная с маслом сливочным | C100: 140/3 | F100: 3.76 | G100: 6.13 | H100: 22.96 | I100: 162.00 | J100: 0.00 | K100: ТТК №1Д
B101: Крупа полбяная | D101: 18 | E101: 18
B102: Молоко | D102: 75 | E102: 75
B103: вода | D103: 48 | E103: 48
B104: Сахар | D104: 2 | E104: 2
B105: соль иодированная | D105: 0.4 | E105: 0.4
B106: Масло сливочное | D106: 3 | E106: 3
A107: Какао с молоком | C107: 180 | F107: 3.67 | G107: 3.19 | H107: 15.82 | I107: 106.74 | J107: 1.43 | K107: №397 Дели2010
B108: Какао-порошок | D108: 2.00 | E108: 2.00
B109: Сахар | D109: 6.00 | E109: 6.00
B110: Молоко | D110: 110.00 | E110: 110.00
B111: Вода | D111: 80.00 | E111: 80.00
A112: Бутерброд с сыром, маслом сливочным | C112: 25/5/5 | F112: 3.23 | G112: 5.69 | H112: 12.92 | I112: 115.67 | J112: 0.04 | K112: №3 сб дошк2016
B113: Батон нарезной | D113: 25 | E113: 25
B114: Сыр | D114: 5.1 | E114: 5
B115: Масло сливочное | D115: 5 | E115: 5
A116: Итого: | C116: 358 | F116: =F100+F107+F112 -> 10.66 | G116: =G100+G107+G112 -> 15.01 | H116: 51.70 | I116: 384.41 | J116: 1.46
B117: 2 - ой ЗАВТРАК
A118: Фрукты свежие | C118: 100 | D118: 100 | E118: 100 | F118: 0.40 | G118: 0.40 | H118: 9.80 | I118: 47.00 | J118: 10.00 | K118: №386 СБ
A119: (яблоки,или апельсин, или банан,или мандарин ) | K119: дошк.2016
A120: Итого: | C120: 100 | F120: =F118 -> 0.40 | G120: =G118 -> 0.40 | H120: 9.80 | I120: 47.00 | J120: 10.00
B121: ОБЕД
A122: Салат из картофеля с солеными огурцами | C122: 40 | F122: 0.49 | G122: 3.14 | H122: 3.58 | I122: 44.56 | J122: 2.41 | K122: №23 сб дошк2016
B123: огурцы соленые | D123: 21.84 | E123: 12.00
B124: картофель | D124: 21.92 | E124: 16.00
B125: морковь | D125: 10.24 | E125: 8.00
B126: лук репчатый | D126: 2.40 | E126: 2.00
B127: масло растительное | D127: 2.00 | E127: 2.00
A128: Борщ со свежей капустой, картофелем на курином бульоне,с куриными фрикадельками,со сметаной | C128: 150/10/7 | F128: 2.66 | G128: 5.26 | H128: 7.69 | I128: 94.08 | J128: 6.43 | K128: №110,сбшк2004
B129: Капуста свежая | D129: 15.0 | E129: 12.0
B130: Картофель | D130: 15.96 | E130: 12.0
B131: Морковь | D131: 7.5 | E131: 6.0
B132: Лук репчатый | D132: 7.14 | E132: 6.0
B133: Свекла | D133: 30.72 | E133: 24.0
B134: Сахар | D134: 1.8 | E134: 1.8
B135: Масло растительное | D135: 3.0 | E135: 3.0
B136: соль иодированная | D136: 0.65 | E136: 0.7
B137: Бульон | D137: 120 | E137: 120.0
B138: цыплята-бройлер с/м | D138: 17.56 | E138: 11.4
B139: или фарш куриный | D139: 11.97 | E139: 11.4
B140: Лук репчатый | D140: 1.2 | E140: 1
B141: Яйцо | D141: 0.96 | E141: 0.8
B142: Вода для фарша | D142: 1 | E142: 1
B143: соль иодированная | D143: 0.1 | E143: 0.1
B144: Масса полуфабриката | E144: 14.3
B145: масса готовых фрикаделек | E145: 10
B146: Сметана | D146: 7.0 | E146: 7.0
A147: Фрикадельки куриные в молочном соусе | C147: 40/20 | F147: 5.99 | G147: 7.13 | H147: 5.16 | I147: 109.04 | J147: 0.47 | K147: № 325 сб дошк 2016
B148: цыплята - бройлеры с/м | D148: 45.6 | E148: 29.3
B149: или фарш куриный | D149: 30.77 | E149: 29.3
B150: Хлеб пшеничный | D150: 7.3 | E150: 7.3
B151: Вода | D151: 9.0 | E151: 9.0
B152: соль иодированная | D152: 0.3 | E152: 0.3
B153: Масса полуфабриката | E153: 46.0
B154: Масло растительное | D154: 0.6 | E154: 0.6
B155: Соус молочный: | E155: 20.0
B156: Молоко | D156: 10.0 | E156: 10.0
B157: Масло сливочное | D157: 1.04 | E157: 1.0
B158: Мука пшеничная | D158: 1.04 | E158: 1.0
B159: Вода | D159: 10.0 | E159: 10.0
B160: Сахар | D160: 0.2 | E160: 0.2
B161: соль иодированная | D161: 0.2 | E161: 0.2
A162: Макаронные изделия отварные с маслом сливочным | C162: 110/3 | F162: 4.17 | G162: 2.66 | H162: 23.45 | I162: 134.38 | J162: 0.00 | K162: №219 Сб дошк.2016
B163: макаронные изделия | D163: 38.5 | E163: 38.5
B164: вода | D164: 231.0 | E164: 231.0
B165: соль иодированная | D165: 0.45 | E165: 0.45
B166: масло сливочное | D166: 3 | E166: 3
A167: Кисель | C167: 150 | F167: 0.45 | G167: 0.08 | H167: 22.65 | I167: 92.70 | J167: 0.83 | K167: №648 сбшк2004
B168: Кисель-концентрат | D168: 17.5 | E168: 17.5
B169: Сахар | D169: 5 | E169: 5
B170: вода | D170: 150 | E170: 150
A171: Хлеб пшеничный | C171: 20 | D171: 20.00 | E171: 20.00 | F171: 1.52 | G171: 0.16 | H171: 9.84 | I171: 47.00 | K171: табл 6 стр 134,Дели + 2012
A172: Хлеб ржаной | C172: 30 | D172: 30 | E172: 30 | F172: 1.98 | G172: 0.36 | H172: 11.88 | I172: 59.40 | K172: табл 6 стр 144,Дели + 2012
A173: Итого: | C173: 580 | F173: =SUM(F122:F172) -> 17.26 | G173: =SUM(G122:G172) -> 18.79 | H173: =SUM(H122:H172) -> 84.25 | I173: =SUM(I122:I172) -> 581.16 | J173: =SUM(J122:J172) -> 10.15
B174: ПОЛДНИК
A175: Молоко кипяченое | C175: 150 | F175: 4.35 | G175: 3.75 | H175: 7.20 | I175: 80.25 | J175: 1.95 | K175: №419 Сб дошк 2016
A176: (молоко) | B176: молоко | D176: 158 | E176: 150
A177: Булочка дорожная | C177: 50 | F177: 3.39 | G177: 6.98 | H177: 21.07 | I177: 160.50 | K177: №453 сб дошк2016
B178: Мука пшеничная | D178: 30.50 | E178: 30.00
B179: мука пшеничная на подпыл | D179: 1.00 | E179: 1.00
B180: Сахар | D180: 6.00 | E180: 6.00
B181: Масло сливочное | D181: 6.50 | E181: 6.50
B182: соль иодированная | D182: 0.30 | E182: 0.30
B183: дрожжи сухие | D183: 0.20 | E183: 0.20
B184: вода | D184: 15.30 | E184: 15.30
B185: масса полуфабриката | E185: 57.00
B186: для крошки:
B187: мука пшеничная | D187: 1.20 | E187: 1.20
B188: масло сливочное | D188: 1.00 | E188: 1.00
B189: масса крошки | E189: 2.00
B190: масло растительное для смазки изделй | D190: 1.00 | E190: 1.00
A191: Итого: | C191: 200 | F191: =F175+F177 -> 7.74 | G191: =G175+G177 -> 10.73 | H191: 28.27 | I191: 240.75 | J191: 1.95
A192: ВСЕГО: | C192: =C116+C120+C173+C191 -> 1238.00 | F192: =F116+F120+F173+F191 -> 36.06 | G192: =G116+G120+G173+G191 -> 44.92 | H192: =H116+H120+H173+H191 -> 174.02 | I192: =I116+I120+I173+I191 -> 1253.32 | J192: =J116+J120+J173+J191 -> 23.56
A194: День 3 - ий
A195: Наименование блюд и | C195: Масса | D195: Кол - во | E195: Кол - во | F195: Пищевые вещества | I195: Энергетическая | J195: С,мг | K195: Сборник
A196: продуктов | C196: порции | D196: (в гр ) | E196: (в гр ) | I196: ценность | K196: рецептур
D197: брутто | E197: нетто | F197: белки | G197: жиры | H197: угл-ды | I197: Ккал
B198: ЗАВТРАК
A199: Каша кукурузная молочная с маслом сливочным | C199: 140/3 | F199: 5.31 | G199: 4.87 | H199: 35.49 | I199: 207.36 | J199: 0.67 | K199: ТТК № 2Д
B200: Крупа кукурузная | D200: 18 | E200: 18
B201: Молоко | D201: 75 | E201: 75
B202: Вода | D202: 48 | E202: 48
B203: Сахар | D203: 2 | E203: 2
B204: соль иодированная | D204: 0.4 | E204: 0.4
B205: Масло сливочное | D205: 3 | E205: 3
A206: Чай с молоком,сахаром | C206: 180/6 | F206: 2.67 | G206: 2.27 | H206: 10.34 | I206: 72.70 | J206: 1.20 | K206: № 413 сб дошк 2016
... 731 more rows

Sheet МЕНЮ - РАСК 3-7
A1: Утверждаю | F1: Согласовано
A2: Директор _________________________ | F2: Руководитель дошкольной образовательной
A3: __________________________________ | F3: организации _________________________
C8: Примерное 10-дневное меню
C9: для организации питания детей в дошкольных учреждениях
C10: с 8-10,5 - часовым пребыванием от 3 до 7 лет
A12: День 1 - ый
A13: Наименование блюд и | C13: Масса | D13: Кол - во | E13: Кол - во | F13: Пищевые вещества | I13: Энергетическая | J13: С | K13: Сборник рецептур
A14: продуктов | C14: порции | D14: (в гр ) | E14: (в гр ) | I14: ценность
D15: брутто | E15: нетто | F15: белки | G15: жиры | H15: угл-ды | I15: Ккал
B16: ЗАВТРАК
A17: Каша "Дружба" молочная с маслом сливочным | C17: 180/5 | F17: 5.44 | G17: 7.17 | H17: 30.09 | I17: 207.60 | J17: 0.86 | K17: ТТК №7Д
B18: Крупа рисовая | D18: 13.50 | E18: 13.50
B19: Крупа пшенная | D19: 10.00 | E19: 10.00
B20: Молоко | D20: 90.00 | E20: 90.00
B21: Вода | D21: 68.00 | E21: 68.00
B22: Сахар | D22: 2.50 | E22: 2.50
B23: соль иодированная | D23: 0.50 | E23: 0.50
B24: Масло сливочное | D24: 5 | E24: 5
A25: Кофейный напиток с молоком | C25: 180 | F25: 2.85 | G25: 2.41 | H25: 14.35 | I25: 90.54 | J25: 1.17 | K25: №395 Дели2010
B26: Кофейный напиток | D26: 2.50 | E26: 2.50
B27: Сахар | D27: 6.00 | E27: 6.00
B28: Молоко | D28: 90.00 | E28: 90.00
B29: Вода | D29: 108.00 | E29: 108.00
A30: Бутерброд с маслом сливочным | C30: 30/5 | F30: 2.29 | G30: 4.50 | H30: 15.49 | I30: 111.60 | J30: 0.00 | K30: №1 Дели2010
B31: Батон нарезной | D31: 30.00 | E31: 30.00
B32: Масло сливочное | D32: 5.00 | E32: 5.00
A33: Итого: | C33: 400 | F33: =F17+F25+F30 -> 10.58 | G33: =G17+G25+G30 -> 14.08 | H33: 59.93 | I33: 409.74 | J33: 2.03
B34: 2 - ой ЗАВТРАК
A35: Сок (или нектар) | C35: 180 | D35: 180.00 | E35: 180.00 | F35: 0.90 | H35: 18.18 | I35: 76.32 | J35: 3.60 | K35: №418 сб дошк 2016
A36: в ассортименте
A37: Итого: | C37: 180 | F37: =F35 -> 0.90 | G37: =G35 -> 0.00 | H37: 18.18 | I37: 76.32 | J37: 3.60
B38: ОБЕД
A39: Салат из моркови с яблоками | C39: 60 | F39: 0.64 | G39: 0.10 | H39: 5.11 | I39: 23.94 | J39: 2.63 | K39: №39,сб дошк2016
B40: морковь | D40: 56.28 | E40: 45.00
B41: яблоки | D41: 17.10 | E41: 15.00
B42: сахар | D42: 0.60 | E42: 0.60
A43: Суп вермишелевый с картофелем с мясными фрикадельками | C43: 180/15 | F43: 4.74 | G43: 3.65 | H43: 12.56 | I43: 110.89 | J43: 6.09 | K43: №88,сб дошк2016
B44: говядина б/к (котлетное мясо) | D44: 17.85 | E44: 17.1
B45: или фарш говяжий | D45: 17.85 | E45: 17.1
B46: Лук репчатый | D46: 1.79 | E46: 1.5
B47: Яйцо | D47: 1.44 | E47: 1.2
B48: Вода для фарша | D48: 1.5 | E48: 1.5
B49: соль иодированная | D49: 0.15 | E49: 0.15
B50: Масса полуфабриката | E50: 21.5
B51: масса готовых фрикаделек | E51: 15
B52: Картофель | D52: 79.80 | E52: 60.00
B53: Морковь | D53: 10.00 | E53: 8.00
B54: Лук репчатый | D54: 9.52 | E54: 8.00
B55: вермишель | D55: 8.00 | E55: 8.00
B56: Масло растительное | D56: 4.00 | E56: 4.00
B57: соль иодированная | D57: 0.70 | E57: 0.70
B58: Вода | D58: 132.00 | E58: 132.00
A59: Котлеты рубленые из говядины | C59: 70 | G59: 11.79 | H59: 13.09 | I59: 11.51 | J59: 0.06 | K59: 1.814299752
B60: говядина б/к (котлетное мясо) | D60: 51.16 | E60: 49
B61: или фарш говяжий | D61: 51.16 | E61: 49
B62: Лук репчатый | D62: 14.64 | E62: 12.3
B63: Хлеб пшеничный | D63: 11 | E63: 11
B64: Вода | D64: 14.7 | E64: 14.7
B65: Сухари панировочные | D65: 7.00 | E65: 7.00
B66: соль иодированная | D66: 0.7 | E66: 0.7
B67: масса полуфабриката | E67: 84
B68: масло растительное | D68: 1 | E68: 1
A69: Пюре Картофельное | C69: 140 | F69: 2.86 | G69: 4.48 | H69: 19.08 | I69: 128.10 | J69: 16.95 | K69: № 339 СБ дошк 2016
B70: Картофель | D70: 159.60 | E70: 119.70
B71: Молоко | D71: 22.12 | E71: 21.00
B72: Масло сливочное | D72: 5.00 | E72: 5.00
B73: соль иодированная | D73: 0.52 | E73: 0.52
A74: Напиток из сухофруктов | C74: 180 | F74: 0.60 | G74: 0.08 | H74: 28.81 | I74: 119.52 | J74: 1 | K74: №394 Сб дошк 2016
B75: сухофрукты | D75: 15.30 | E75: 15.00
B76: Сахар | D76: 6.00 | E76: 6.00
B77: вода | D77: 183.00 | E77: 183.00
A78: Хлеб пшеничный | C78: 20 | D78: 20.0 | E78: 20.0 | F78: 1.52 | G78: 0.16 | H78: 9.84 | I78: 47.00 | K78: табл 6 стр 134,Дели + 2012
A79: Хлеб ржаной | C79: 35 | D79: 35.00 | E79: 35.00 | F79: 2.31 | G79: 0.42 | H79: 13.86 | I79: 69.30 | K79: табл 6 стр 144,Дели + 2012
A80: Итого: | C80: 700 | F80: =F39+F43+F59+F69+F74+F78+F79 -> 12.66 | G80: =G39+G43+G59+G69+G74+G78+G79 -> 20.69 | H80: 102.35 | I80: 510.26 | J80: 26.38
B81: ПОЛДНИК
A82: Кисломолочный напиток | C82: 180 | F82: 5.22 | G82: 4.50 | H82: 7.20 | I82: 90.00 | J82: 1.26 | K82: №420 СБ дошк 2016
A83: (Кефир,ряженка,катык,йогурт/ напиток ацидофильный) | B83: кисломолочный напиток | D83: 185.00 | E83: 180.00
A84: Запеканка творожная с повидлом | C84: 130/20 | F84: 22.82 | G84: 20.06 | H84: 25.22 | I84: 372.60 | J84: 0.66 | K84: №251, сбдошк 2016
B85: Творог | D85: 121.55 | E85: 119.20
B86: Крупа манная | D86: 7.80 | E86: 7.80
B87: Яйцо | D87: 6.50 | E87: 5.42
B88: Сахар | D88: 10.40 | E88: 10.40
B89: Сметана | D89: 5.20 | E89: 5.20
B90: Масло сливочное | D90: 5.20 | E90: 5.20
B91: Сухари панировочные | D91: 5.20 | E91: 5.20
B92: соль иодированная | D92: 0.65 | E92: 0.65
B93: повидло | D93: 20.00 | E93: 20.00
A94: Итого: | C94: 330 | F94: =F82+F84 -> 28.04 | G94: =G82+G84 -> 24.56 | H94: 32.42 | I94: 462.60 | J94: 1.92
A95: ВСЕГО: | C95: =C33+C37+C80+C94 -> 1610.00 | F95: =F33+F37+F80+F94 -> 52.18 | G95: =G33+G37+G80+G94 -> 59.33 | H95: 212.88 | I95: 1458.92 | J95: 33.93
A97: День 2- ой
A98: Наименование блюд и | C98: Масса | D98: Кол - во | E98: Кол - во | F98: Пищевые вещества | I98: Энергетическая | J98: С | K98: Сборник
A99: продуктов | C99: порции | D99: (в гр ) | E99: (в гр ) | I99: ценность | K99: рецептур
D100: брутто | E100: нетто | F100: белки | G100: жиры | H100: угл-ды | I100: Ккал
B101: ЗАВТРАК
A102: Каша полбяная молочная с маслом сливочным | C102: 180/3 | F102: 4.83 | G102: 7.26 | H102: 29.50 | I102: 202.64 | J102: 0.00 | K102: ТТК №1Д
B103: Крупа полбяная | D103: 22.50 | E103: 22.50
B104: Молоко | D104: 90.00 | E104: 90.00
B105: вода | D105: 68.00 | E105: 68.00
B106: Сахар | D106: 2.50 | E106: 2.50
B107: соль иодированная | D107: 0.50 | E107: 0.50
B108: Масло сливочное | D108: 3.00 | E108: 3.00
A109: Какао с молоком | C109: 180 | F109: 3.67 | G109: 3.19 | H109: 15.82 | I109: 106.74 | J109: 1.43 | K109: №397 Дели2010
B110: Какао-порошок | D110: 2.00 | E110: 2.00
B111: Сахар | D111: 6.00 | E111: 6.00
B112: Молоко | D112: 110.00 | E112: 110.00
B113: Вода | D113: 80.00 | E113: 80.00
A114: Бутерброд с сыром, маслом сливочным | C114: 30/5/5 | F114: 3.61 | G114: 5.83 | H114: 15.49 | I114: 128.77 | J114: 0.04 | K114: №3 сб дошк2016
B115: Батон нарезной | D115: 30.00 | E115: 30.00
B116: Сыр | D116: 5.10 | E116: 5.00
B117: Масло сливочное | D117: 5.00 | E117: 5.00
A118: Итого: | C118: 403 | F118: =F102+F109+F114 -> 12.10 | G118: =G102+G109+G114 -> 16.28 | H118: 60.82 | I118: 438.15 | J118: 1.46
B119: 2 - ой ЗАВТРАК
A120: Фрукты свежие | C120: 100 | D120: 100 | E120: 100 | F120: 0.40 | G120: 0.40 | H120: 9.80 | I120: 47.00 | J120: 10.00 | K120: №386 СБ
A121: (яблоки,или апельсин, или банан,или мандарин ) | K121: дошк.2016
A122: Итого: | C122: 100 | F122: =F120 -> 0.40 | G122: =G120 -> 0.40 | H122: 9.80 | I122: 47.00 | J122: 10.00
B123: ОБЕД
A124: Салат из картофеля с солеными огурцами | C124: 60 | F124: 0.73 | G124: 4.71 | H124: 5.38 | I124: 66.84 | J124: 3.62 | K124: №23 сб дошк2016
B125: огурцы соленые | D125: 32.76 | E125: 18.00
B126: картофель | D126: 32.90 | E126: 24.00
B127: морковь | D127: 15.36 | E127: 12.00
B128: лук репчатый | D128: 3.60 | E128: 3.00
B129: масло растительное | D129: 3.00 | E129: 3.00
A130: Борщ со свежей капустой, картофелем на курином бульоне, с куриными фрикадельками,со сметаной | C130: 180/10/7 | F130: 2.88 | G130: 5.85 | H130: 9.00 | I130: 106.53 | J130: 7.71 | K130: №110, сб шк2004
B131: Капуста свежая | D131: 20.00 | E131: 16.00
B132: Картофель | D132: 21.28 | E132: 16.00
B133: Морковь | D133: 12.50 | E133: 10.00
B134: Лук репчатый | D134: 9.52 | E134: 8.00
B135: Свекла | D135: 41.00 | E135: 32.00
B136: Сахар | D136: 2.40 | E136: 2.40
B137: Томат-паста | D137: 1.00 | E137: 1.00
B138: Масло растительное | D138: 4.00 | E138: 4.00
B139: соль иодированная | D139: 0.80 | E139: 0.80
B140: Бульон | D140: 140.00 | E140: 140.00
B141: цыплята-бройлер с/м | D141: 17.56 | E141: 11.4
B142: или фарш куриный | D142: 11.97 | E142: 11.4
B143: Лук репчатый | D143: 1.2 | E143: 1
B144: Яйцо | D144: 0.96 | E144: 0.8
B145: Вода для фарша | D145: 1 | E145: 1
B146: соль иодированная | D146: 0.1 | E146: 0.1
B147: Масса полуфабриката | E147: 14.3
B148: масса готовых фрикаделек | E148: 10
B149: Сметана | D149: 7.00 | E149: 7.00
A150: Фрикадельки куриные в молочном соусе | C150: 50/25 | F150: 7.49 | G150: 8.92 | H150: 6.45 | I150: 136.30 | J150: 0.59 | K150: № 325 сб дошк 2016
B151: цыплята - бройлеры с/м | D151: 57.00 | E151: 37.00
B152: или фарш куриный | E152: 37.00
B153: Хлеб пшеничный | D153: 9.00 | E153: 9.00
B154: Вода | D154: 12.00 | E154: 12.00
B155: соль иодированная | D155: 0.35 | E155: 0.35
B156: Масса полуфабриката | E156: 57.00
B157: Масло растительное | D157: 0.70 | E157: 0.70
B158: Соус молочный: | E158: 25.00
B159: Молоко | D159: 12.50 | E159: 12.50
B160: Масло сливочное | D160: 1.30 | E160: 1.30
B161: Мука пшеничная | D161: 1.3 | E161: 1.3
B162: Вода | D162: 12.50 | E162: 12.5
B163: Сахар | D163: 0.30 | E163: 0.3
B164: соль иодированная | D164: 0.3 | E164: 0.3
A165: Макаронные изделия отварные с маслом сливочным | C165: 130/3 | F165: 4.93 | G165: 2.75 | H165: 27.70 | I165: 155.22 | J165: 0.00 | K165: №219 Сб дошк 2016
B166: макаронные изделия | D166: 45.5 | E166: 45.50
B167: вода | D167: 275.0 | E167: 275.0
B168: соль иодированная | D168: 0.5 | E168: 0.5
B169: Масло сливочное | D169: 3.0 | E169: 3.0
A170: Кисель | C170: 180 | F170: 0.54 | G170: 0.09 | H170: 27.18 | I170: 111.24 | J170: 0.99 | K170: № 648, сб шк2004
B171: Кисель-концентрат | D171: 21.0 | E171: 21.0
B172: Сахар | D172: 6.0 | E172: 6.0
B173: вода | D173: 180.0 | E173: 180.0
A174: Хлеб пшеничный | C174: 20 | D174: 20.00 | E174: 20.00 | F174: 1.52 | G174: 0.16 | H174: 9.84 | I174: 47.00 | K174: табл 6 стр 134,Дели + 2012
A175: Хлеб ржаной | C175: 35 | D175: 35.00 | E175: 35.00 | F175: 2.31 | G175: 0.42 | H175: 13.86 | I175: 69.30 | K175: табл 6 стр 144,Дели + 2012
A176: Итого: | C176: 700 | F176: =SUM(F123:F175) -> 20.40 | G176: =SUM(G123:G175) -> 22.89 | H176: =SUM(H123:H175) -> 99.41 | I176: =SUM(I123:I175) -> 692.43 | J176: =SUM(J123:J175) -> 12.92
B177: ПОЛДНИК
A178: Молоко кипяченое | C178: 180 | F178: 5.22 | G178: 4.50 | H178: 8.64 | I178: 96.30 | J178: 2.34 | K178: №419 СБ дошк 2016
A179: (молоко) | B179: молоко | D179: 189.00 | E179: 180.00
A180: Булочка дорожная | C180: 75 | F180: 5.09 | G180: 10.47 | H180: 31.61 | I180: 240.75 | K180: №453 сб дошк2016
B181: Мука пшеничная | D181: 45.50 | E181: 45.00
B182: мука пшеничная на подпыл | D182: 1.50 | E182: 1.50
B183: Сахар | D183: 9.00 | E183: 9.00
B184: Масло сливочное | D184: 9.75 | E184: 9.75
B185: соль иодированная | D185: 0.45 | E185: 0.45
B186: дрожжи сухие | D186: 0.30 | E186: 0.30
B187: вода | D187: 23.00 | E187: 23.00
B188: масса полуфабриката | E188: 85.50
B189: для крошки:
B190: мука пшеничная | D190: 1.80 | E190: 1.80
B191: масло сливочное | D191: 1.50 | E191: 1.50
B192: масса крошки | E192: 3.00
B193: масло растительное для смазки изделй | D193: 1.00 | E193: 1.00
A194: Итого: | C194: 255 | F194: =F178+F180 -> 10.31 | G194: =G178+G180 -> 14.97 | H194: =H178+H180 -> 40.25 | I194: =I178+I180 -> 337.05 | J194: =J178+J180 -> 2.34
A195: ВСЕГО: | C195: =C118+C122+C176+C194 -> 1458 | F195: =F118+F122+F176+F194 -> 43.21 | G195: =G118+G122+G176+G194 -> 54.54 | H195: =H118+H122+H176+H194 -> 210.27 | I195: =I118+I122+I176+I194 -> 1514.63 | J195: =J118+J122+J176+J194 -> 26.72
A197: День 3 - ий
A198: Наименование блюд и | C198: Масса | D198: Кол - во | E198: Кол - во | F198: Пищевые вещества | I198: Энергетическая | J198: С | K198: Сборник
A199: продуктов | C199: порции | D199: (в гр ) | E199: (в гр ) | I199: ценность | K199: рецептур
D200: брутто | E200: нетто | F200: белки | G200: жиры | H200: угл-ды | I200: Ккал
B201: ЗАВТРАК
A202: Каша кукурузная молочная с маслом сливочным | C202: 180/3 | F202: 6.82 | G202: 5.64 | H202: 45.62 | I202: 260.96 | J202: 0.86 | K202: ТТК №2Д
B203: Крупа кукурузная | D203: 22.50 | E203: 22.50
B204: Молоко | D204: 90.00 | E204: 90.00
B205: Вода | D205: 68.00 | E205: 68.00
B206: Сахар | D206: 2.50 | E206: 2.50
B207: соль иодированная | D207: 0.50 | E207: 0.50
... 741 more rows
